[Event "Titled Tuesday Blitz March 29 Early 2022"]
[White "Shvedova, Alexandra"]
[Black "Piliczewski, Bogusz"]
[WhiteFideId "54154782"]
[BlackFideId "1104144"]
[WhiteElo "1912"]
[BlackElo "1896"]
[Result "1/2-1/2"]
[Round "02"]
[TimeControl "180+1"]
[Date "2022.03.30"]
[WhiteClock "0:00:07"]
[BlackClock "0:00:15"]

1. e4 {[%clk 0:03:00]}  c6 {[%clk 0:03:00]} 2. d4 {[%clk 0:03:00]}  d5 {[%clk 0:03:01]} 3. Nc3 {[%clk 0:03:00]}  dxe4 {[%clk 0:03:00]} 4. Nxe4 {[%clk 0:03:01]}  Bf5 {[%clk 0:02:59]} 5. Ng3 {[%clk 0:03:01]}  Bg6 {[%clk 0:03:00]} 6. Nf3 {[%clk 0:03:02]}  Nd7 {[%clk 0:02:59]} 7. h4 {[%clk 0:03:00]}  h6 {[%clk 0:02:58]} 8. h5 {[%clk 0:02:58]}  Bh7 {[%clk 0:02:59]} 9. Bd3 {[%clk 0:02:59]}  Bxd3 {[%clk 0:02:58]} 10. Qxd3 {[%clk 0:03:00]}  e6 {[%clk 0:02:58]} 11. Bd2 {[%clk 0:02:59]}  Ngf6 {[%clk 0:02:56]} 12. O-O-O {[%clk 0:02:59]}  Be7 {[%clk 0:02:57]} 13. Ne4 {[%clk 0:02:50]}  Nxe4 {[%clk 0:02:55]} 14. Qxe4 {[%clk 0:02:51]}  Nf6 {[%clk 0:02:55]} 15. Qe2 {[%clk 0:02:51]}  a5 {[%clk 0:02:49]} 16. g4 {[%clk 0:02:37]}  a4 {[%clk 0:02:42]} 17. a3 {[%clk 0:02:29]}  b5 {[%clk 0:02:37]} 18. g5 {[%clk 0:02:09]}  hxg5 {[%clk 0:02:36]} 19. Nxg5 {[%clk 0:02:07]}  Qd5 {[%clk 0:02:18]} 20. Kb1 {[%clk 0:01:29]}  b4 {[%clk 0:01:51]} 21. axb4 {[%clk 0:01:19]}  a3 {[%clk 0:01:50]} 22. b3 {[%clk 0:01:08]}  Qxd4 {[%clk 0:01:39]} 23. c3 {[%clk 0:01:07]}  Qg4 {[%clk 0:01:18]} 24. Qxg4 {[%clk 0:00:54]}  Nxg4 {[%clk 0:01:18]} 25. Rdf1 {[%clk 0:00:55]}  Nf6 {[%clk 0:01:10]} 26. Rh3 {[%clk 0:00:42]}  Rxh5 {[%clk 0:01:08]} 27. Rxh5 {[%clk 0:00:38]}  Nxh5 {[%clk 0:01:08]} 28. Rh1 {[%clk 0:00:39]}  g6 {[%clk 0:01:08]} 29. Ka2 {[%clk 0:00:38]}  Rd8 {[%clk 0:01:03]} 30. Bc1 {[%clk 0:00:31]}  Bf6 {[%clk 0:00:56]} 31. Ne4 {[%clk 0:00:31]}  Be5 {[%clk 0:00:49]} 32. Re1 {[%clk 0:00:18]}  Ke7 {[%clk 0:00:42]} 33. Bxa3 {[%clk 0:00:18]}  f5 {[%clk 0:00:42]} 34. b5+ {[%clk 0:00:18]}  Kf7 {[%clk 0:00:40]} 35. Ng5+ {[%clk 0:00:18]}  Kf6 {[%clk 0:00:39]} 36. Nh7+ {[%clk 0:00:18]}  Kg7 {[%clk 0:00:39]} 37. Rxe5 {[%clk 0:00:18]}  Kxh7 {[%clk 0:00:38]} 38. Rxe6 {[%clk 0:00:18]}  Rd2+ {[%clk 0:00:36]} 39. Bb2 {[%clk 0:00:19]}  cxb5 {[%clk 0:00:35]} 40. c4 {[%clk 0:00:19]}  bxc4 {[%clk 0:00:35]} 41. bxc4 {[%clk 0:00:20]}  Rxf2 {[%clk 0:00:34]} 42. c5 {[%clk 0:00:20]}  Rc2 {[%clk 0:00:35]} 43. c6 {[%clk 0:00:20]}  Nf4 {[%clk 0:00:34]} 44. Re7+ {[%clk 0:00:21]}  Kh6 {[%clk 0:00:34]} 45. c7 {[%clk 0:00:20]}  g5 {[%clk 0:00:32]} 46. Rf7 {[%clk 0:00:16]}  Kg6 {[%clk 0:00:31]} 47. Rf6+ {[%clk 0:00:17]}  Kh5 {[%clk 0:00:31]} 48. Rf7 {[%clk 0:00:13]}  Nd3 {[%clk 0:00:27]} 49. Kb3 {[%clk 0:00:10]}  Rxb2+ {[%clk 0:00:19]} 50. Kc3 {[%clk 0:00:11]}  Rb1 {[%clk 0:00:19]} 51. Kxd3 {[%clk 0:00:10]}  Rc1 {[%clk 0:00:19]} 52. Kd4 {[%clk 0:00:10]}  Kg4 {[%clk 0:00:18]} 53. Ke5 {[%clk 0:00:10]}  f4 {[%clk 0:00:18]} 54. Ke4 {[%clk 0:00:09]}  Kg3 {[%clk 0:00:17]} 55. Rg7 {[%clk 0:00:08]}  g4 {[%clk 0:00:17]} 56. Kf5 {[%clk 0:00:09]}  f3 {[%clk 0:00:15]} 57. Rxg4+ {[%clk 0:00:09]}  Kf2 {[%clk 0:00:16]} 58. Rf4 {[%clk 0:00:09]}  Ke2 {[%clk 0:00:16]} 59. Kg4 {[%clk 0:00:09]}  f2 {[%clk 0:00:16]} 60. Re4+ {[%clk 0:00:09]}  Kd3 {[%clk 0:00:15]} 61. Rf4 {[%clk 0:00:09]}  Ke3 {[%clk 0:00:15]} 62. Rf3+ {[%clk 0:00:10]}  Ke2 {[%clk 0:00:15]} 63. Kg3 {[%clk 0:00:08]}  Rxc7 {[%clk 0:00:15]} 64. Rxf2+ {[%clk 0:00:07]}  Ke1 {[%clk 0:00:15]} 1/2-1/2


[Site "https://www.chess.com"]

[Event "Titled Tuesday Blitz March 29 Early 2022"]
[White "Todorovic, Bojan"]
[Black "De Silva, L M S T"]
[WhiteFideId "917087"]
[BlackFideId "9953698"]
[WhiteElo "2266"]
[BlackElo "1631"]
[Result "0-1"]
[Round "02"]
[TimeControl "180+1"]
[Date "2022.03.30"]
[WhiteClock "0:00:01"]
[BlackClock "0:00:42"]

1. d4 {[%clk 0:02:59]}  Nf6 {[%clk 0:02:59]} 2. Bg5 {[%clk 0:02:56]}  e6 {[%clk 0:02:59]} 3. Nd2 {[%clk 0:02:55]}  h6 {[%clk 0:02:59]} 4. Bh4 {[%clk 0:02:54]}  g5 {[%clk 0:02:53]} 5. Bg3 {[%clk 0:02:54]}  Bg7 {[%clk 0:02:54]} 6. e4 {[%clk 0:02:49]}  d5 {[%clk 0:02:51]} 7. e5 {[%clk 0:02:44]}  Ne4 {[%clk 0:02:51]} 8. Bd3 {[%clk 0:02:40]}  Nxd2 {[%clk 0:02:48]} 9. Qxd2 {[%clk 0:02:39]}  c5 {[%clk 0:02:48]} 10. c3 {[%clk 0:02:37]}  Nc6 {[%clk 0:02:48]} 11. Ne2 {[%clk 0:02:34]}  Qb6 {[%clk 0:02:44]} 12. O-O {[%clk 0:02:31]}  Bd7 {[%clk 0:02:43]} 13. Bc2 {[%clk 0:02:08]}  O-O-O {[%clk 0:02:39]} 14. Rfb1 {[%clk 0:01:57]}  Kb8 {[%clk 0:02:38]} 15. b4 {[%clk 0:01:55]}  cxd4 {[%clk 0:02:38]} 16. cxd4 {[%clk 0:01:54]}  Ne7 {[%clk 0:02:36]} 17. a4 {[%clk 0:01:46]}  Rc8 {[%clk 0:02:32]} 18. Bd3 {[%clk 0:01:45]}  Ng6 {[%clk 0:02:21]} 19. a5 {[%clk 0:01:41]}  Qd8 {[%clk 0:02:21]} 20. Nc3 {[%clk 0:01:37]}  h5 {[%clk 0:02:16]} 21. f3 {[%clk 0:01:35]}  h4 {[%clk 0:02:15]} 22. Bf2 {[%clk 0:01:35]}  Nf4 {[%clk 0:02:15]} 23. Bf1 {[%clk 0:01:30]}  Bh6 {[%clk 0:02:14]} 24. Be3 {[%clk 0:01:20]}  f6 {[%clk 0:02:08]} 25. Ne2 {[%clk 0:01:02]}  Ng6 {[%clk 0:01:59]} 26. exf6 {[%clk 0:00:59]}  Qxf6 {[%clk 0:02:00]} 27. b5 {[%clk 0:00:58]}  Nf4 {[%clk 0:01:56]} 28. b6 {[%clk 0:00:48]}  a6 {[%clk 0:01:54]} 29. h3 {[%clk 0:00:43]}  Qf5 {[%clk 0:01:46]} 30. Rc1 {[%clk 0:00:33]}  Bb5 {[%clk 0:01:44]} 31. Rxc8+ {[%clk 0:00:23]}  Rxc8 {[%clk 0:01:44]} 32. Rc1 {[%clk 0:00:23]}  Bc4 {[%clk 0:01:20]} 33. Nxf4 {[%clk 0:00:20]}  gxf4 {[%clk 0:01:21]} 34. Bf2 {[%clk 0:00:20]}  Bg5 {[%clk 0:01:14]} 35. Qb4 {[%clk 0:00:15]}  Qf8 {[%clk 0:00:57]} 36. Qxf8 {[%clk 0:00:14]}  Rxf8 {[%clk 0:00:58]} 37. Bxc4 {[%clk 0:00:14]}  Rc8 {[%clk 0:00:59]} 38. Re1 {[%clk 0:00:08]}  dxc4 {[%clk 0:00:59]} 39. Rc1 {[%clk 0:00:06]}  c3 {[%clk 0:00:58]} 40. Rc2 {[%clk 0:00:06]}  Be7 {[%clk 0:00:56]} 41. Kf1 {[%clk 0:00:06]}  Bb4 {[%clk 0:00:57]} 42. Bxh4 {[%clk 0:00:04]}  Bxa5 {[%clk 0:00:57]} 43. Bf6 {[%clk 0:00:02]}  Bxb6 {[%clk 0:00:56]} 44. h4 {[%clk 0:00:03]}  Ba5 {[%clk 0:00:52]} 45. Be5+ {[%clk 0:00:02]}  Ka7 {[%clk 0:00:50]} 46. h5 {[%clk 0:00:03]}  b5 {[%clk 0:00:41]} 47. h6 {[%clk 0:00:03]}  b4 {[%clk 0:00:42]} 48. Ke2 {[%clk 0:00:01]}  b3 {[%clk 0:00:42]} 0-1


[Site "https://www.chess.com"]

[Event "Titled Tuesday Blitz March 29 Early 2022"]
[White "Toncheva, Nadya"]
[Black "Seo, Jung Min"]
[WhiteFideId "2924056"]
[BlackFideId "1734687"]
[WhiteElo "1884"]
[BlackElo "2401"]
[Result "1-0"]
[Round "02"]
[TimeControl "180+1"]
[Date "2022.03.30"]
[WhiteClock "0:00:14"]
[BlackClock "0:00:46"]

1. e4 {[%clk 0:03:00]}  e5 {[%clk 0:02:59]} 2. Nf3 {[%clk 0:03:00]}  Nc6 {[%clk 0:02:59]} 3. Bc4 {[%clk 0:03:00]}  Bc5 {[%clk 0:02:59]} 4. c3 {[%clk 0:03:00]}  Nf6 {[%clk 0:02:59]} 5. d3 {[%clk 0:02:59]}  O-O {[%clk 0:02:59]} 6. O-O {[%clk 0:03:00]}  d6 {[%clk 0:02:56]} 7. Nbd2 {[%clk 0:02:58]}  a6 {[%clk 0:02:54]} 8. Bb3 {[%clk 0:02:58]}  Ba7 {[%clk 0:02:54]} 9. Re1 {[%clk 0:02:58]}  Ne7 {[%clk 0:02:54]} 10. Nf1 {[%clk 0:02:57]}  Ng6 {[%clk 0:02:54]} 11. Ng3 {[%clk 0:02:56]}  Re8 {[%clk 0:02:50]} 12. h3 {[%clk 0:02:55]}  c6 {[%clk 0:02:48]} 13. d4 {[%clk 0:02:54]}  exd4 {[%clk 0:02:40]} 14. cxd4 {[%clk 0:02:51]}  Be6 {[%clk 0:02:40]} 15. Bc2 {[%clk 0:02:48]}  Rc8 {[%clk 0:02:40]} 16. Be3 {[%clk 0:02:43]}  c5 {[%clk 0:02:39]} 17. Qd2 {[%clk 0:02:37]}  cxd4 {[%clk 0:02:28]} 18. Bxd4 {[%clk 0:02:09]}  Bc5 {[%clk 0:02:28]} 19. Rad1 {[%clk 0:02:07]}  Nd7 {[%clk 0:02:25]} 20. b4 {[%clk 0:01:56]}  Bxd4 {[%clk 0:02:24]} 21. Nxd4 {[%clk 0:01:56]}  Nde5 {[%clk 0:02:16]} 22. Ndf5 {[%clk 0:01:50]}  Bxf5 {[%clk 0:02:13]} 23. exf5 {[%clk 0:01:35]}  Nf8 {[%clk 0:02:08]} 24. Bb3 {[%clk 0:01:35]}  Nc4 {[%clk 0:02:04]} 25. Rxe8 {[%clk 0:01:22]}  Qxe8 {[%clk 0:02:02]} 26. Bxc4 {[%clk 0:01:21]}  Rxc4 {[%clk 0:02:02]} 27. Qxd6 {[%clk 0:01:21]}  h6 {[%clk 0:01:50]} 28. Kh2 {[%clk 0:01:09]}  Qc6 {[%clk 0:01:46]} 29. Qe7 {[%clk 0:00:59]}  Qc7 {[%clk 0:01:41]} 30. Qe3 {[%clk 0:00:46]}  Rxb4 {[%clk 0:01:38]} 31. f6 {[%clk 0:00:47]}  Qf4 {[%clk 0:01:26]} 32. fxg7 {[%clk 0:00:44]}  Ne6 {[%clk 0:01:24]} 33. Rd8+ {[%clk 0:00:28]}  Kxg7 {[%clk 0:01:22]} 34. Qc3+ {[%clk 0:00:18]}  Nd4 {[%clk 0:00:53]} 35. Rxd4 {[%clk 0:00:14]}  Rxd4 {[%clk 0:00:46]} 36. Qxd4+ {[%clk 0:00:14]} 1-0


[Site "https://www.chess.com"]

[Event "Titled Tuesday Blitz March 29 Early 2022"]
[White "Tsydypov, Zhamsaran"]
[Black "Zemlyanskii, Ivan"]
[WhiteFideId "4108566"]
[BlackFideId "24249971"]
[WhiteElo "2614"]
[BlackElo "1759"]
[Result "1-0"]
[Round "02"]
[TimeControl "180+1"]
[Date "2022.03.29"]
[WhiteClock "0:01:22"]
[BlackClock "0:00:06"]

1. d4 {[%clk 0:03:00]}  Nf6 {[%clk 0:02:59]} 2. c4 {[%clk 0:03:00]}  e6 {[%clk 0:02:58]} 3. Nf3 {[%clk 0:02:59]}  b6 {[%clk 0:02:54]} 4. g3 {[%clk 0:02:57]}  Ba6 {[%clk 0:02:53]} 5. Qc2 {[%clk 0:02:57]}  Bb7 {[%clk 0:02:50]} 6. Bg2 {[%clk 0:02:55]}  c5 {[%clk 0:02:48]} 7. d5 {[%clk 0:02:53]}  exd5 {[%clk 0:02:48]} 8. Nh4 {[%clk 0:02:54]}  Nc6 {[%clk 0:02:42]} 9. cxd5 {[%clk 0:02:52]}  Nb4 {[%clk 0:02:33]} 10. Qb3 {[%clk 0:02:52]}  Bxd5 {[%clk 0:02:29]} 11. Bxd5 {[%clk 0:02:50]}  Nbxd5 {[%clk 0:02:28]} 12. e4 {[%clk 0:02:50]}  c4 {[%clk 0:02:19]} 13. Qf3 {[%clk 0:02:39]}  Nb4 {[%clk 0:02:15]} 14. O-O {[%clk 0:02:39]}  d6 {[%clk 0:01:52]} 15. Bg5 {[%clk 0:02:33]}  Nc2 {[%clk 0:01:39]} 16. e5 {[%clk 0:02:33]}  Nd4 {[%clk 0:01:27]} 17. Qe3 {[%clk 0:02:23]}  dxe5 {[%clk 0:01:24]} 18. Qxe5+ {[%clk 0:02:22]}  Be7 {[%clk 0:01:11]} 19. Bxf6 {[%clk 0:02:10]}  gxf6 {[%clk 0:01:07]} 20. Qe4 {[%clk 0:02:10]}  O-O {[%clk 0:00:55]} 21. Rd1 {[%clk 0:02:07]}  Bc5 {[%clk 0:00:51]} 22. Nf5 {[%clk 0:02:03]}  Kh8 {[%clk 0:00:26]} 23. Nxd4 {[%clk 0:02:03]}  Re8 {[%clk 0:00:26]} 24. Qh4 {[%clk 0:02:03]}  Bxd4 {[%clk 0:00:23]} 25. Rxd4 {[%clk 0:02:01]}  Re1+ {[%clk 0:00:21]} 26. Kg2 {[%clk 0:02:01]}  Qe7 {[%clk 0:00:20]} 27. Nc3 {[%clk 0:01:42]}  Rxa1 {[%clk 0:00:17]} 28. Nd5 {[%clk 0:01:42]}  Qe5 {[%clk 0:00:15]} 29. Nxf6 {[%clk 0:01:42]}  h5 {[%clk 0:00:16]} 30. Rd5 {[%clk 0:01:41]}  Qe1 {[%clk 0:00:10]} 31. Rxh5+ {[%clk 0:01:30]}  Kg7 {[%clk 0:00:09]} 32. Qg5+ {[%clk 0:01:31]}  Kf8 {[%clk 0:00:09]} 33. Rh8+ {[%clk 0:01:31]}  Ke7 {[%clk 0:00:09]} 34. Ne4+ {[%clk 0:01:32]}  Ke6 {[%clk 0:00:08]} 35. Qf6+ {[%clk 0:01:28]}  Kd5 {[%clk 0:00:08]} 36. Qd6+ {[%clk 0:01:20]}  Kxe4 {[%clk 0:00:07]} 37. Rh4+ {[%clk 0:01:20]}  Kf5 {[%clk 0:00:06]} 38. Rf4+ {[%clk 0:01:20]}  Kg5 {[%clk 0:00:06]} 39. Qf6+ {[%clk 0:01:21]}  Kh5 {[%clk 0:00:06]} 40. Rh4# {[%clk 0:01:22]} 1-0


[Site "https://www.chess.com"]

[Event "Titled Tuesday Blitz March 29 Early 2022"]
[White "Tsyhanchuk, Stanislav"]
[Black "Perez Gormaz, Matias"]
[WhiteFideId "13505130"]
[BlackFideId "3406342"]
[WhiteElo "2078"]
[BlackElo "2327"]
[Result "1-0"]
[Round "02"]
[TimeControl "180+1"]
[Date "2022.03.30"]
[WhiteClock "0:00:11"]
[BlackClock "0:00:17"]

1. e4 {[%clk 0:03:00]}  c5 {[%clk 0:02:59]} 2. Nf3 {[%clk 0:03:00]}  d6 {[%clk 0:02:59]} 3. d4 {[%clk 0:03:00]}  cxd4 {[%clk 0:03:00]} 4. Nxd4 {[%clk 0:03:01]}  Nf6 {[%clk 0:03:00]} 5. Nc3 {[%clk 0:03:02]}  a6 {[%clk 0:03:01]} 6. Be3 {[%clk 0:03:02]}  e5 {[%clk 0:03:02]} 7. Nb3 {[%clk 0:03:02]}  Be7 {[%clk 0:03:02]} 8. Qd2 {[%clk 0:03:02]}  Be6 {[%clk 0:02:59]} 9. O-O-O {[%clk 0:03:02]}  Nbd7 {[%clk 0:02:59]} 10. f4 {[%clk 0:03:01]}  Rc8 {[%clk 0:02:59]} 11. Kb1 {[%clk 0:02:59]}  b5 {[%clk 0:02:56]} 12. h3 {[%clk 0:02:58]}  h5 {[%clk 0:02:54]} 13. Bd3 {[%clk 0:02:55]}  h4 {[%clk 0:02:47]} 14. f5 {[%clk 0:02:55]}  Bc4 {[%clk 0:02:47]} 15. Rhg1 {[%clk 0:02:50]}  Nb6 {[%clk 0:02:40]} 16. g4 {[%clk 0:02:45]}  hxg3 {[%clk 0:02:38]} 17. Rxg3 {[%clk 0:02:43]}  Bf8 {[%clk 0:02:08]} 18. Bg5 {[%clk 0:02:25]}  b4 {[%clk 0:02:00]} 19. Ne2 {[%clk 0:02:07]}  d5 {[%clk 0:01:54]} 20. exd5 {[%clk 0:01:42]}  Qxd5 {[%clk 0:01:30]} 21. Bxf6 {[%clk 0:01:28]}  gxf6 {[%clk 0:01:30]} 22. Bxc4 {[%clk 0:01:22]}  Qxd2 {[%clk 0:01:22]} 23. Bxf7+ {[%clk 0:01:21]}  Kxf7 {[%clk 0:01:22]} 24. Nxd2 {[%clk 0:01:12]}  Rd8 {[%clk 0:01:18]} 25. Nc1 {[%clk 0:01:02]}  Bh6 {[%clk 0:01:15]} 26. Rd3 {[%clk 0:00:32]}  Rxd3 {[%clk 0:01:06]} 27. Nxd3 {[%clk 0:00:33]}  Bxd2 {[%clk 0:00:59]} 28. Rxd2 {[%clk 0:00:34]}  Rxh3 {[%clk 0:01:00]} 29. b3 {[%clk 0:00:35]}  Nd5 {[%clk 0:00:56]} 30. Nxe5+ {[%clk 0:00:31]}  fxe5 {[%clk 0:00:55]} 31. Rxd5 {[%clk 0:00:32]}  Kf6 {[%clk 0:00:54]} 32. Kc1 {[%clk 0:00:25]}  Kxf5 {[%clk 0:00:53]} 33. Kd2 {[%clk 0:00:25]}  Rc3 {[%clk 0:00:44]} 34. a3 {[%clk 0:00:22]}  Ke4 {[%clk 0:00:35]} 35. Ra5 {[%clk 0:00:19]}  Rc6 {[%clk 0:00:23]} 36. axb4 {[%clk 0:00:19]}  Kd4 {[%clk 0:00:23]} 37. b5 {[%clk 0:00:15]}  axb5 {[%clk 0:00:21]} 38. Rxb5 {[%clk 0:00:16]}  e4 {[%clk 0:00:20]} 39. c3+ {[%clk 0:00:11]}  Rxc3 {[%clk 0:00:17]} 40. Rb4+ {[%clk 0:00:11]}  Ke5 {[%clk 0:00:17]} 41. Kxc3 {[%clk 0:00:11]} 1-0


[Site "https://www.chess.com"]

[Event "Titled Tuesday Blitz March 29 Early 2022"]
[White "Vovk, Orest"]
[Black "Simonovic, Miroslav"]
[WhiteFideId "14113490"]
[BlackFideId "919152"]
[WhiteElo "2203"]
[BlackElo "2043"]
[Result "1-0"]
[Round "02"]
[TimeControl "180+1"]
[Date "2022.03.30"]
[WhiteClock "0:01:11"]
[BlackClock "0:00:09"]

1. h4 {[%clk 0:03:00]}  c5 {[%clk 0:02:59]} 2. h5 {[%clk 0:02:59]}  Nc6 {[%clk 0:02:56]} 3. d3 {[%clk 0:02:57]}  e5 {[%clk 0:02:54]} 4. Nc3 {[%clk 0:02:53]}  f5 {[%clk 0:02:53]} 5. e4 {[%clk 0:02:53]}  f4 {[%clk 0:02:51]} 6. Nf3 {[%clk 0:02:52]}  Nf6 {[%clk 0:02:50]} 7. h6 {[%clk 0:02:52]}  g6 {[%clk 0:02:45]} 8. Nd5 {[%clk 0:02:51]}  d6 {[%clk 0:02:44]} 9. Nxf6+ {[%clk 0:02:50]}  Qxf6 {[%clk 0:02:45]} 10. c4 {[%clk 0:02:50]}  Bd7 {[%clk 0:02:38]} 11. Bd2 {[%clk 0:02:48]}  O-O-O {[%clk 0:02:37]} 12. Bc3 {[%clk 0:02:48]}  g5 {[%clk 0:02:27]} 13. Be2 {[%clk 0:02:32]}  Rg8 {[%clk 0:02:19]} 14. Nh2 {[%clk 0:02:31]}  Qxh6 {[%clk 0:02:05]} 15. Kd2 {[%clk 0:02:30]}  Qg7 {[%clk 0:01:43]} 16. Ng4 {[%clk 0:02:11]}  Be7 {[%clk 0:01:37]} 17. Nh6 {[%clk 0:02:10]}  Rh8 {[%clk 0:01:30]} 18. Bg4 {[%clk 0:02:10]}  Bf6 {[%clk 0:01:17]} 19. Nf5 {[%clk 0:02:08]}  Bxf5 {[%clk 0:01:06]} 20. Bxf5+ {[%clk 0:02:07]}  Kb8 {[%clk 0:01:06]} 21. Qh5 {[%clk 0:02:04]}  h6 {[%clk 0:01:04]} 22. g4 {[%clk 0:02:03]}  Ne7 {[%clk 0:00:54]} 23. Be6 {[%clk 0:02:02]}  Qg6 {[%clk 0:00:47]} 24. Qxg6 {[%clk 0:02:02]}  Nxg6 {[%clk 0:00:48]} 25. b4 {[%clk 0:01:58]}  b6 {[%clk 0:00:39]} 26. a4 {[%clk 0:01:32]}  Nh4 {[%clk 0:00:36]} 27. a5 {[%clk 0:01:29]}  cxb4 {[%clk 0:00:28]} 28. Bxb4 {[%clk 0:01:29]}  Rh7 {[%clk 0:00:11]} 29. axb6 {[%clk 0:01:28]}  axb6 {[%clk 0:00:12]} 30. Ra6 {[%clk 0:01:28]}  Rb7 {[%clk 0:00:12]} 31. Rha1 {[%clk 0:01:25]}  Nf3+ {[%clk 0:00:08]} 32. Kc3 {[%clk 0:01:17]}  Nd4 {[%clk 0:00:09]} 33. Bd5 {[%clk 0:01:17]}  Rdd7 {[%clk 0:00:07]} 34. Ra8+ {[%clk 0:01:16]}  Kc7 {[%clk 0:00:07]} 35. Bxb7 {[%clk 0:01:12]}  Kxb7 {[%clk 0:00:08]} 36. R1a7+ {[%clk 0:01:11]}  Kc6 {[%clk 0:00:09]} 37. Rc8+ {[%clk 0:01:11]} 1-0


[Site "https://www.chess.com"]

[Event "Titled Tuesday Blitz March 29 Early 2022"]
[White "Vusatiuk, Vladimir"]
[Black "Kucuksari, Kaan"]
[WhiteFideId "14118610"]
[BlackFideId "6380166"]
[WhiteElo "2157"]
[BlackElo "2305"]
[Result "1-0"]
[Round "02"]
[TimeControl "180+1"]
[Date "2022.03.30"]
[WhiteClock "0:00:08"]
[BlackClock "0:00:22"]

1. d4 {[%clk 0:03:00]}  d5 {[%clk 0:02:56]} 2. c4 {[%clk 0:03:00]}  c6 {[%clk 0:02:56]} 3. e3 {[%clk 0:03:00]}  Nf6 {[%clk 0:02:56]} 4. Nc3 {[%clk 0:03:00]}  e6 {[%clk 0:02:55]} 5. Nf3 {[%clk 0:03:00]}  Nbd7 {[%clk 0:02:54]} 6. Be2 {[%clk 0:03:00]}  Bd6 {[%clk 0:02:53]} 7. Qc2 {[%clk 0:03:00]}  O-O {[%clk 0:02:52]} 8. O-O {[%clk 0:03:00]}  b6 {[%clk 0:02:52]} 9. Rd1 {[%clk 0:02:59]}  Bb7 {[%clk 0:02:52]} 10. b3 {[%clk 0:02:59]}  Qe7 {[%clk 0:02:51]} 11. Bb2 {[%clk 0:02:55]}  Rad8 {[%clk 0:02:52]} 12. cxd5 {[%clk 0:02:39]}  cxd5 {[%clk 0:02:50]} 13. Nb5 {[%clk 0:02:38]}  Rc8 {[%clk 0:02:48]} 14. Qb1 {[%clk 0:02:30]}  a6 {[%clk 0:02:46]} 15. Nxd6 {[%clk 0:02:29]}  Qxd6 {[%clk 0:02:46]} 16. a4 {[%clk 0:02:19]}  Rfe8 {[%clk 0:02:33]} 17. Ba3 {[%clk 0:02:15]}  Qb8 {[%clk 0:02:32]} 18. Qb2 {[%clk 0:02:11]}  Ne4 {[%clk 0:02:31]} 19. Rac1 {[%clk 0:02:03]}  Rxc1 {[%clk 0:02:30]} 20. Rxc1 {[%clk 0:02:02]}  Rc8 {[%clk 0:02:30]} 21. Bd3 {[%clk 0:01:37]}  Rc7 {[%clk 0:02:14]} 22. Ne1 {[%clk 0:00:51]}  Qc8 {[%clk 0:02:03]} 23. f3 {[%clk 0:00:45]}  Nef6 {[%clk 0:02:03]} 24. Rc2 {[%clk 0:00:37]}  Qb8 {[%clk 0:02:01]} 25. Qc1 {[%clk 0:00:34]}  Rxc2 {[%clk 0:01:59]} 26. Nxc2 {[%clk 0:00:33]}  e5 {[%clk 0:01:59]} 27. Nb4 {[%clk 0:00:21]}  exd4 {[%clk 0:01:52]} 28. exd4 {[%clk 0:00:19]}  a5 {[%clk 0:01:51]} 29. Nc6 {[%clk 0:00:17]}  Bxc6 {[%clk 0:01:50]} 30. Qxc6 {[%clk 0:00:18]}  h6 {[%clk 0:01:38]} 31. Bf5 {[%clk 0:00:18]}  Nf8 {[%clk 0:01:36]} 32. Bd6 {[%clk 0:00:17]}  Qd8 {[%clk 0:01:28]} 33. Qc7 {[%clk 0:00:14]}  Qe8 {[%clk 0:01:24]} 34. Qe7 {[%clk 0:00:09]}  Qxe7 {[%clk 0:01:21]} 35. Bxe7 {[%clk 0:00:10]}  Ne6 {[%clk 0:01:21]} 36. Bxe6 {[%clk 0:00:09]}  fxe6 {[%clk 0:01:22]} 37. Bd8 {[%clk 0:00:08]}  Nd7 {[%clk 0:01:22]} 38. Kf2 {[%clk 0:00:09]}  Kf7 {[%clk 0:01:20]} 39. Ke3 {[%clk 0:00:09]}  Ke8 {[%clk 0:01:10]} 40. Bc7 {[%clk 0:00:10]}  Ke7 {[%clk 0:01:10]} 41. Kd3 {[%clk 0:00:10]}  Kf6 {[%clk 0:01:08]} 42. Kc3 {[%clk 0:00:07]}  e5 {[%clk 0:00:40]} 43. dxe5+ {[%clk 0:00:08]}  Nxe5 {[%clk 0:00:41]} 44. Bxb6 {[%clk 0:00:09]}  Nc6 {[%clk 0:00:41]} 45. Bd4+ {[%clk 0:00:08]}  Kf7 {[%clk 0:00:40]} 46. Bc5 {[%clk 0:00:08]}  g5 {[%clk 0:00:38]} 47. b4 {[%clk 0:00:08]}  Ke6 {[%clk 0:00:37]} 48. b5 {[%clk 0:00:08]}  Nd8 {[%clk 0:00:37]} 49. Bb6 {[%clk 0:00:07]}  Nb7 {[%clk 0:00:38]} 50. Kd4 {[%clk 0:00:07]}  h5 {[%clk 0:00:35]} 51. Bc5 {[%clk 0:00:06]}  g4 {[%clk 0:00:33]} 52. fxg4 {[%clk 0:00:06]}  hxg4 {[%clk 0:00:34]} 53. h3 {[%clk 0:00:06]}  g3 {[%clk 0:00:33]} 54. Bb6 {[%clk 0:00:06]}  Nd6 {[%clk 0:00:33]} 55. Bxa5 {[%clk 0:00:03]}  Nf5+ {[%clk 0:00:32]} 56. Kd3 {[%clk 0:00:04]}  Nh4 {[%clk 0:00:33]} 57. Bc7 {[%clk 0:00:04]}  Nf5 {[%clk 0:00:29]} 58. Bf4 {[%clk 0:00:05]}  Kd7 {[%clk 0:00:30]} 59. a5 {[%clk 0:00:05]}  Kc8 {[%clk 0:00:30]} 60. a6 {[%clk 0:00:06]}  Ne7 {[%clk 0:00:21]} 61. b6 {[%clk 0:00:06]}  Nc6 {[%clk 0:00:22]} 62. b7+ {[%clk 0:00:07]}  Kd7 {[%clk 0:00:22]} 63. a7 {[%clk 0:00:07]}  Nxa7 {[%clk 0:00:22]} 64. b8=Q {[%clk 0:00:08]} 1-0


[Site "https://www.chess.com"]